[Event "Mongolian Championship Open 2022"]
[Site "Chingis Khentii"]
[Date "2022.05.15"]
[Round "1.6"]
[White "Munkhgal, Gombosuren"]
[Black "Amilal Munkhdalai"]
[Result "1-0"]
[ECO "E04"]
[WhiteElo "2502"]
[BlackElo "2033"]
[Annotator "TA"]
[PlyCount "81"]
[EventDate "2022.05.12"]
[EventType "tourn"]
[EventCountry "MGL"]
[SourceTitle "playchess.com"]
[Source "ChessBase"]
[SourceQuality "1"]
[TimeControl "40/5400+30:1800+30"]

{[%evp 14,81,22,33,22,20,38,36,30,31,62,62,55,41,45,54,69,42,44,-38,0,0,0,0,0,-2,-25,-62,104,94,93,7,61,0,0,0,0,0,0,0,0,0,0,0,0,0,115,82,85,84,96,104,268,253,359,346,502,368,677,651,825,1205,1165,1141,854,804,29987,29982,29987,29988]} 1. d4 {[%emt 1:31:00]} Nf6 {[%emt 1:31:00]} 2. c4 {[%emt 0:00:30]} e6 {[%emt 0:00:30]} 3. g3 {[%emt 0:00:30]} d5 {[%emt 0:00:30]} 4. Bg2 {[%emt 0:00:30]} dxc4 {[%emt 0:00:30]} 5. Nf3 {[%emt 0:00:30]} Bd7 {[%emt 0:00:30]} 6. Ne5 {[%emt 0:00:30]} Bc6 7. Nxc6 Nxc6 8. e3 {[%emt 0:01:00]} Qd7 {E04: Open Catalan: 5 Nf3.} 9. O-O {[%emt 0:00:30][%mdl 1024] White has compensation.} O-O-O {[%emt 0:02:00] is the legacy move (9...Rd8).} 10. Nc3 {[%emt 0:00:30]} Nd5 {[%emt 0:00:30] White is slightly better.} 11. Bd2 {[%emt 0:00:30]} h5 12. b3 $1 {[%emt 0:00:30]} cxb3 {[%emt 0:01:00] [#]} 13. Qxb3 $146 {[%emt 0:00:30]} ({Predecessor:} 13. Nxd5 exd5 14. Qxb3 Ne7 15. Rab1 c6 16. Rfc1 Kb8 17. e4 dxe4 18. Bxe4 f5 19. Bg2 g6 20. d5 Rc8 21. Bf4+ Ka8 22. dxc6 Nxc6 23. Rd1 {1-0 (23) Firouzja,A (2558)-Gholami Orimi,M (2299) Bushehr 2018}) 13... Na5 {[%emt 0:00:30][%cal Bc6a5,Ba5c4,Bc4a3][%mdl 32]} 14. Qc2 {[%emt 0:00:30]} Nc4 {[%emt 0:00:30]} 15. Ne4 (15. Nb1 $5 {[%cal Rc2c4]} Nxd2 16. Nxd2 $11) 15... Na3 {[%emt 0:00:30]} 16. Qc1 {[%emt 0:01:00]} (16. Qb3 $14 Qb5 17. Ng5) 16... Be7 {[%emt 0:00:30]} 17. Nc5 {[%emt 0:00:30]} Bxc5 18. Qxc5 Qa4 {[%emt 0:01:00]} 19. e4 $132 {[%emt 0:01:00][%mdl 2048] White has counterplay} b6 {[%emt 0:00:30]} 20. Qc1 {[%emt 0:00:30]} Nb4 (20... Nf6 $15) 21. Bxb4 $16 {[%emt 0:00:30]} (21. Bf4 Nac2 22. d5 exd5 $17) 21... Qxb4 {[%emt 0:01:00] [#]} 22. d5 {[%emt 0:00:30]} (22. e5 $1 $16 {Black must now prevent Qc6.} Qa4 23. Qc3 Rxd4 24. Rac1 (24. Qf3 Rd5 $16)) 22... e5 (22... Kb8 $11) 23. Qg5 {[%emt 0:00:30]} (23. Rd1 $1 $14) 23... Nc2 $11 {[%emt 0:01:00]} 24. Rac1 Nd4 {[%emt 0:00:30]} 25. Qxe5 {[%emt 0:01:00][%csl Gc1][%cal Re5c7]} Ne2+ {[%emt 0:00:30]} 26. Kh1 {[%emt 0:00:30][%csl Gc1][%cal Re5c7]} Nxc1 {[%emt 0:00:30]} 27. Rxc1 {[%emt 0:00:30][%csl Gc1][%cal Re5c7]} (27. Bh3+ Kb8 28. Rxc1 Qd6 29. Qxg7 h4 $15) 27... Qd6 {[%emt 0:00:30]} 28. Qxg7 {[%emt 0:00:30]} h4 $1 {[%emt 0:00:30] Hoping for ...Rdg8.} 29. e5 {[%emt 0:00:30]} (29. Qxf7 $2 hxg3 30. Qf5+ Kb8 $19) 29... Qa3 {[#]} (29... Qg6 $11 {keeps the balance.} 30. Qxg6 fxg6) 30. Qg4+ $1 $16 {[%emt 0:00:30]} Kb8 {[%emt 0:01:00]} 31. Qc4 {[%emt 0:00:30] The board is on fire. White is more active.} Rc8 {[%emt 0:00:30] ...hxg3 is the strong threat.} 32. Kg1 {[%emt 0:00:30] Threatens to win with Qc6.} c6 $2 {[%emt 0:00:30] Loses the game.} (32... Qe7 $16 {keeps fighting.}) 33. d6 $18 {[%emt 0:00:30]} (33. dxc6 Rc7 $14) 33... hxg3 (33... h3 $142) 34. hxg3 Qb2 {[%emt 0:01:00]} (34... Rhd8 $142 35. Bh3 Rh8) 35. Rd1 {[%emt 0:01:00]} b5 $2 {[%emt 0:00:30]} (35... Rhd8 36. Qe4 (36. Qxf7 $2 Rf8 $19) (36. Bxc6 Qxe5 37. d7 Rc7 $15) 36... Qxa2) 36. Qe4 {[%emt 0:00:30]} Rhd8 {[%emt 0:00:30]} 37. Rb1 {[%emt 0:00:30]} Qc3 {[%emt 0:00:30] [#]} 38. Rxb5+ $3 {[%emt 0:00:30][%mdl 512]} Ka8 {[%emt 0:00:30]} 39. Rb1 {[%emt 0:00:30] Qa4 would kill now.} f6 {[%emt 0:00:30]} 40. exf6 {[%emt 0:00:30]} Rxd6 {[%emt 0:00:30]} 41. Qe7 {[%emt 0:30:30] Weighted Error Value: White=0.16 (very precise) /Black=0.57} 1-0

[Event "Mongolian Championship Open 2022"]
[Site "Chingis Khentii"]
[Date "2022.05.15"]
[Round "2.1"]
[White "Bilguun, Sumiya"]
[Black "Enkhnar, Enkhbaatar"]
[Result "1/2-1/2"]
[ECO "B23"]
[WhiteElo "2454"]
[BlackElo "2368"]
[Annotator "TA"]
[PlyCount "123"]
[EventDate "2022.05.12"]
[EventType "tourn"]
[EventCountry "MGL"]
[SourceTitle "playchess.com"]
[Source "ChessBase"]
[SourceQuality "1"]
[TimeControl "40/5400+30:1800+30"]

{[%evp 11,123,23,10,25,37,1,28,40,40,28,31,35,116,96,97,86,131,123,121,83,80,84,65,69,75,87,93,74,94,61,58,39,39,32,28,38,31,0,42,39,37,36,39,35,39,12,19,10,20,17,12,20,18,-10,-18,-12,0,0,0,0,0,0,0,0,39,16,16,0,6,0,0,0,0,0,15,13,12,17,20,8,8,0,0,0,0,0,0,-2,0,0,0,-8,-8,-8,-8,-8,-8,-8,-4,-6,0,-81,-81,-81,-81,-82,-79,-79,-64,-213,-69,-141,0,0]} 1. e4 {[%emt 1:31:00]} c5 2. Nc3 {[%emt 0:00:30]} e6 3. f4 {[%emt 0:00:30]} Nc6 {[%emt 1:32:00]} 4. Nf3 {[%emt 0:00:30]} d5 5. Bb5 {[%emt 0:00:30]} d4 {[%emt 0:01:00]} 6. Bxc6+ {[%emt 0:00:30]} bxc6 {[%emt 0:00:30]} 7. Nb1 {[%emt 0:00:30] B23: Closed Sicilian: Lines without g3.} c4 8. Ne5 {[%emt 0:00:30] [#]} Bd6 $146 {[%emt 0:01:00]} ({Predecessor:} 8... Nf6 9. Qf3 d3 10. cxd3 cxd3 11. Nxd3 Ba6 12. Ne5 Bd6 13. d3 O-O 14. O-O Bxe5 15. fxe5 {0-1 (51) Schuetz,P (2040)-Musil,V (2210) Prievidza 1998}) 9. Nxc4 {[%emt 0:00:30] White has an edge.} Bxf4 {[%emt 0:00:30]} 10. Qf3 {[%emt 0:00:30]} Bc7 {[%emt 0:00:30]} 11. O-O $1 {[%emt 0:00:30][%csl Gf1][%cal Rf3f7]} f6 {[%emt 0:00:30] [#]} (11... Qd7 $1 $14) 12. Qh5+ $1 $16 {[%emt 0:00:30]} g6 {[%emt 0:00:30]} 13. Qc5 $36 {[%mdl 2048] White has strong initiative.} Bb7 {[%emt 0:00:30]} 14. d3 {[%emt 0:01:00]} e5 {Against Bf4} 15. b3 {[%emt 0:00:30] 0x0.001a2c98d68adp-1022s more active pieces.} Qe7 {[%emt 0:01:00]} 16. Ba3 {[%emt 0:00:30] And now Qxe7+ would win.} Qxc5 {[%emt 0:00:30]} 17. Bxc5 {[%emt 0:00:30]} h5 {[%emt 0:00:30]} 18. Nbd2 {[%emt 0:00:30][%cal Bb1d2,Bd2f3,Bf3h4,Bh4f5][%mdl 32]} Kd7 {[%emt 0:00:30]} 19. Nf3 {[%emt 0:00:30][%cal Of3e5]} Rh7 {[%emt 0:00:30]} 20. Nh4 Rg7 {[%emt 0:00:30]} 21. Rf3 {[%emt 0:01:00]} Ba6 {[%emt 0:00:30]} 22. Rg3 {[%emt 0:00:30][%cal Oh4f5] Black must now prevent Nf5!} g5 23. Nf5 {[%emt 0:00:30] Inhibits Nh6.} Rh7 24. Nd2 {[%emt 0:00:30] Pair of Knights!} Ba5 {[%emt 0:01:30]} 25. b4 Bd8 {[%emt 0:00:30]} 26. Rf3 {[%emt 0:01:00]} Nh6 {[%emt 0:00:30]} 27. Nxh6 {[%emt 0:00:30]} Rxh6 {[%emt 0:00:30][%cal Bh7h6,Bh6g6,Bg6g7,Bg7d7,Bd7b7,Bb7b5][%mdl 32]} 28. Bf8 {[%emt 0:00:30]} Rg6 29. Nb3 Ke8 {[%emt 0:01:00]} 30. Bd6 Bc8 {[%emt 0:00:30][%cal Ba6c8,Bc8e6,Be6d5][%mdl 32]} 31. Rff1 {[%emt 0:01:30]} Rg7 {[%emt 0:00:30]} 32. Rfc1 (32. Rab1 {is interesting.} Kd7 33. Bc5 Ke6 34. Na5) 32... Rd7 {[%emt 0:00:30]} 33. Bc5 {[%emt 0:01:00]} Rb7 34. c3 {[%emt 0:00:30]} dxc3 {[%emt 0:01:00]} 35. Rxc3 {[%emt 0:00:30]} Be6 {[%emt 0:00:30]} 36. Na5 {[%emt 0:00:30]} Bxa5 37. bxa5 Rb5 {[%emt 0:01:00]} 38. Rf1 f5 {[%emt 0:00:30]} ({Resist} 38... Kf7 39. d4 $16) 39. exf5 {[%emt 0:01:30]} Bd5 {[%emt 0:00:30]} 40. d4 {[%emt 0:00:30]} exd4 41. Bxd4 {[%emt 0:30:30]} Kf7 {[%emt 0:31:00]} 42. Re3 {[%emt 0:00:30]} Re8 43. Rxe8 {[%emt 0:00:30]} Kxe8 $11 {[%emt 0:01:00][%mdl 4096] Endgame KRB-KRB} 44. Re1+ {[%emt 0:00:30]} Kf7 45. f6 {[%emt 0:00:30] Re7+ is the strong threat.} ({Much worse is} 45. Bxa7 Rxa5 46. Bb6 Rxa2 $17) 45... Be6 {[%emt 0:01:00]} 46. Bc3 {[%emt 0:00:30]} a6 {[%emt 0:00:30]} 47. Kf2 {[%emt 0:00:30]} Rf5+ 48. Ke3 {[%emt 0:00:30]} Bxa2 {[%emt 0:01:00]} 49. h3 {[%emt 0:00:30]} Be6 50. g4 {[%emt 0:00:30]} Rc5 51. Bd4 {[%emt 0:00:30]} Rxa5 52. gxh5 {[%emt 0:00:30]} Ra3+ {[%emt 0:02:00]} 53. Ke4 Rxh3 {[%emt 0:00:30]} 54. Rb1 {[%emt 0:01:00] Hoping for Rb7+.} Bb3 {[%emt 0:00:30]} ({Don't do} 54... Rxh5 55. Rb7+ Kg6 56. Rg7+ Kh6 57. Ke5 $14) 55. Ke5 {[%emt 0:00:30]} g4 {[%emt 0:00:30]} 56. Kd6 {[%emt 0:00:30] [#]} (56. Kf4 $11) 56... Rxh5 $1 $17 {[%emt 0:00:30] aiming for ...Rd5+.} 57. Be5 {[%emt 0:00:30]} Rh3 {[%emt 0:00:30]} 58. Kxc6 {[%emt 0:00:30]} Rf3 {[%emt 0:00:30]} 59. Rg1 Be6 {[%emt 0:00:30]} 60. Rg3 {[%emt 0:01:00]} (60. Ra1 $15) 60... Rf5 {[%emt 0:00:30]} (60... a5 $19 61. Kc5 a4) 61. Bc3 {[%emt 0:00:30] [#]} (61. Kd6 $15) 61... a5 {[%emt 0:00:30]} ({Black should play} 61... Rb5 $1 $17 {Threatens to win with ...Bd5+.} 62. Re3 Rb3) 62. Rxg4 {[%emt 0:00:30] Weighted Error Value: White=0.13 (very precise) /Black=0.11 (very precise)} 1/2-1/2

[Event "Mongolian Championship Open 2022"]
[Site "Chingis Khentii"]
[Date "2022.05.15"]
[Round "2.2"]
[White "Agibileg, Uurtsaikh"]
[Black "Munkhgal, Gombosuren"]
[Result "1-0"]
[ECO "E24"]
[WhiteElo "2440"]
[BlackElo "2502"]
[Annotator "TA"]
[PlyCount "71"]
[EventDate "2022.05.12"]
[EventType "tourn"]
[EventCountry "MGL"]
[SourceTitle "playchess.com"]
[Source "ChessBase"]
[SourceQuality "1"]
[TimeControl "40/5400+30:1800+30"]

{[%evp 13,71,-21,-20,-24,-21,-17,-13,-12,-18,-33,-26,-24,21,15,98,98,95,94,81,77,93,75,98,80,116,122,147,124,144,152,151,159,212,206,261,258,393,385,518,387,408,404,404,397,395,381,595,595,584,577,648,532,29977,29979,29979,29979,29985,29986,29987,990]} 1. d4 {[%emt 1:31:00]} Nf6 {[%emt 1:31:00]} 2. c4 {[%emt 0:00:30]} e6 3. Nc3 {[%emt 0:00:30]} Bb4 4. f3 {[%emt 0:00:30]} c5 5. a3 {[%emt 0:00:30]} Bxc3+ {[%emt 0:02:00]} 6. bxc3 {[%emt 0:00:30]} d6 {[%emt 0:00:30] 6...Nc6 gains popularity.} 7. e4 {[%emt 0:00:30]} Nc6 {[%emt 0:00:30]} 8. Ne2 {[%emt 0:00:30][%cal Bg1e2,Be2c1,Bc1b3][%mdl 32] E24: Nimzo-Indian: Sämisch: Unusual Black 5th moves and 5...c5 sidelines.} b6 {[%emt 0:00:30]} 9. Bg5 {[%emt 0:00:30]} h6 {[%emt 0:00:30]} 10. Bh4 {The position is equal.} e5 {[%emt 0:00:30] [#]} 11. d5 $146 {[%emt 0:01:00] aiming for Qa4.} ({Predecessor:} 11. Bf2 O-O 12. d5 Na5 13. Ng3 Ba6 14. Nf5 Nh5 15. f4 Nxf4 16. Bh4 f6 17. Qg4 Qc7 18. g3 h5 19. Qf3 {½-½ (19) Tauscher,K (2329)-Murlasits,M (2208) ICCF email 2020}) 11... Na5 {[%emt 0:00:30]} 12. Nc1 {[%emt 0:00:30]} Ba6 {[%emt 0:00:30]} (12... g5 $5 {[%cal Rg5h4]} 13. Bf2 Nh5 $11) 13. Nb3 {[%emt 0:00:30]} Qd7 {[%emt 0:00:30]} (13... Bxc4 $2 14. Nxa5 Bxf1 15. Nc6 $18) ({Not} 13... Nxc4 14. Nd2 $16 (14. Nxc5 Nb2 $11)) (13... Kf8 $11) 14. Bxf6 $16 {[%emt 0:00:30]} gxf6 {[%emt 0:00:30]} 15. Nxa5 {[%emt 0:00:30]} bxa5 {[%emt 0:00:30]} 16. Bd3 {[%emt 0:00:30][%cal Of3f4]} Rb8 17. O-O {[%emt 0:00:30]} Rg8 {[%emt 0:01:00]} 18. Ra2 {[%emt 0:00:30]} Ke7 19. f4 {[%emt 0:00:30]} Rg6 20. fxe5 dxe5 21. Raf2 {[%emt 0:01:00]} Rb6 {[%emt 0:02:00]} 22. Be2 {[%emt 0:00:30]} a4 {[%emt 0:00:30]} (22... Qh3 $16 {was called for.}) 23. Kh1 {[%emt 0:00:30]} Rg5 {[%emt 0:00:30]} 24. Qd2 {[%emt 0:00:30] h4 is the strong threat.} Rg6 (24... Bc8 $142 25. h4 Rg8) 25. h4 $18 {[%emt 0:00:30]} Rg3 26. Kh2 {[%emt 0:00:30]} Rg6 27. Bh5 {[%emt 0:00:30]} Bxc4 {[%emt 0:02:00]} 28. Bxg6 {[%emt 0:00:30] The board is on fire.} fxg6 {[%emt 0:00:30]} 29. Re1 {[%emt 0:00:30][%cal Bf1e1,Be1e3,Be3f3,Bf3f6][%mdl 32]} h5 (29... g5 {is a better defense.} 30. Qe3 Qd6 31. hxg5 hxg5) 30. Qh6 {[%emt 0:00:30]} Qe8 {[%emt 0:01:00]} 31. Re3 {[%emt 0:00:30]} Qg8 {[%emt 0:00:30]} 32. Ref3 {[%emt 0:00:30][%cal Of3f6] Rxf6! would kill now.} Rd6 {[%emt 0:00:30] [#]} 33. Rxf6 $3 {[%emt 0:00:30][%mdl 512] White mates.} Rxf6 {[%emt 0:00:30] [#]} 34. Qg5 $1 {[%emt 0:00:30][%csl LRe5,LRf6]} Qg7 {[%emt 0:00:30]} 35. Qxe5+ {[%emt 0:00:30]} Kf7 36. Qe6+ $1 {[%mdl 64] Deflection. White took control after the opening.  Weighted Error Value: White=0.06 (flawless) /Black=0.63} 1-0

[Event "Mongolian Championship Open 2022"]
[Site "Chingis Khentii"]
[Date "2022.05.15"]
[Round "2.3"]
[White "Boldoo, Erdenepurev"]
[Black "Gundavaa, Bayarsaikhan"]
[Result "0-1"]
[ECO "E52"]
[WhiteElo "2371"]
[BlackElo "2495"]
[Annotator "TA"]
[PlyCount "112"]
[EventDate "2022.05.12"]
[EventType "tourn"]
[EventCountry "MGL"]
[SourceTitle "playchess.com"]
[Source "ChessBase"]
[SourceQuality "1"]
[TimeControl "40/5400+30:1800+30"]

{[%evp 19,112,20,17,-22,-16,-28,6,-48,-43,-42,-42,-40,-33,-72,-64,-122,-126,-109,-87,-120,-113,-160,-117,-219,-133,-172,-106,-125,-117,-151,-110,-82,-100,-102,-75,-156,0,-14,-9,-81,-79,-78,-83,-61,-81,-83,-75,-246,-254,-238,-224,-247,-243,-258,-241,-281,-277,-268,-268,-268,-270,-366,-263,-351,-295,-354,-359,-350,-321,-502,-488,-539,-531,-855,-854,-811,-807,-735,-898,-905,-840,-816,-773,-748,-720,-708,-660,-619,-619,-502,-467,-648,-465,-1474,-1251]} 1. d4 {[%emt 1:31:00]} Nf6 {[%emt 1:31:00]} 2. c4 e6 {[%emt 0:00:30]} 3. Nc3 {[%emt 0:01:00]} Bb4 4. e3 {[%emt 0:00:30]} d5 5. Bd2 {[%emt 0:00:30]} O-O {[%emt 0:01:30]} 6. Nf3 {[%emt 0:00:30]} b6 {[%emt 0:00:30]} 7. cxd5 {[%emt 0:00:30]} exd5 {[%emt 0:00:30]} 8. Bd3 {[%emt 0:00:30]} Bb7 9. O-O {[%emt 0:00:30]} a6 {[%emt 0:01:00]} 10. Rc1 {[%emt 0:00:30]} Bd6 {[%emt 0:00:30] [#]} 11. a4 $146 {[%emt 0:00:30] E52: Nimzo-Indian: Rubinstein: 4...0-0 5 Nf3 d5 6 Bd3 b6.} ({Predecessor:} 11. Ne5 c5 12. Ne2 Nc6 13. Nxc6 Bxc6 14. dxc5 bxc5 15. Ng3 Bb5 16. Bc3 Bxg3 17. hxg3 Ne4 18. Qc2 Bxd3 19. Qxd3 {½-½ (43) Keymer,V (2591)-Alekseenko,K (2699) Biel 2021}) 11... c5 {[%emt 0:00:30]} 12. Bb1 {[%emt 0:00:30][%cal Oa4a5]} Nc6 {[%emt 0:00:30]} 13. b3 ({White should play} 13. dxc5 $11 bxc5 14. e4) 13... Re8 14. Ne2 {[%emt 0:01:00]} Ne4 15. Bc3 {[%emt 0:00:30]} Nxc3 {[%emt 0:01:30]} 16. Rxc3 {[%emt 0:00:30]} Rc8 {[%emt 0:00:30]} 17. dxc5 (17. Nf4 $15) 17... bxc5 $17 18. Rc1 {[%emt 0:01:00]} Bf8 {[%emt 0:01:00]} 19. Ne1 {[%emt 0:00:30]} Na5 {[%emt 0:00:30]} 20. Nf4 {[%emt 0:00:30]} (20. Ba2 $142) 20... g6 {[%emt 0:00:30]} 21. Bc2 {[%emt 0:00:30]} (21. Ba2 $17) 21... Bg7 {[%emt 0:00:30]} 22. Ned3 {[%emt 0:00:30]} Qb6 {[%emt 0:00:30]} (22... c4 $19 23. bxc4 dxc4) 23. Rb1 {[%emt 0:00:30]} Qc7 {Black is more active.} 24. Qg4 {[%emt 0:00:30]} d4 25. exd4 cxd4 26. Bd1 {[%emt 0:01:00]} Qd6 {[%emt 0:02:00] Hoping for ...Rc3.} 27. Qg5 {[%emt 0:00:30] [#]} (27. Bf3 $142) 27... Qd8 {[%emt 0:00:30]} (27... Rc3 $1 $17 {And now ...Nc6 would win.} 28. Rc1 (28. Qxa5 $2 Bh6 $19) (28. h4 f5) 28... Bf6 $1) 28. Qxd8 $11 {[%emt 0:00:30]} Rexd8 {[%emt 0:00:30]} 29. Bf3 {[%emt 0:00:30]} (29. b4 $1 $11 {remains equal.} Nc4 30. Nc5) 29... Bxf3 $17 {[%emt 0:00:30]} 30. gxf3 {[%emt 0:00:30]} Rc3 {[%emt 0:00:30] Threatens to win with ...g5.} 31. b4 {[%emt 0:00:30]} Nc4 $36 {[%emt 0:00:30][%mdl 2048] ...g5 is the strong threat. Black is really pushing.} 32. Rfd1 {[%emt 0:00:30]} Bh6 $1 {[%emt 0:00:30]} 33. Kg2 $2 {[%emt 0:00:30] This costs White the game.} (33. b5 $17 {was necessary.}) 33... Bxf4 $19 {[%emt 0:00:30]} 34. Nxf4 {[%emt 0:00:30]} d3 {[%cal Bd4d3,Bd3d2][%mdl 32] Prevents Ne2. White must now prevent ...d2.} 35. b5 {[%emt 0:00:30] [#]} axb5 36. axb5 d2 {[%emt 0:01:30]} 37. b6 {[#]} Nxb6 {[%emt 0:00:30][%mdl 512] aiming for ...Na4.} 38. Ne2 Rc6 {[%emt 0:00:30]} 39. Rb4 {[%emt 0:02:00]} Nc4 {[%emt 0:00:30]} 40. Nc3 {[%emt 0:00:30]} Rd4 {[%emt 0:00:30]} 41. Kg3 {[%emt 0:30:30]} Rd3 42. Nb1 {[%emt 0:00:30]} Kg7 43. Kg2 {[%emt 0:00:30]} g5 44. Kf1 {[%emt 0:00:30]} (44. Rb5 $142) 44... Rxf3 {[%emt 0:32:00][%cal Oc6f6] Strongly threatening ...Rcf6! Black is clearly winning.} 45. Nxd2 {[%emt 0:00:30] [#]} Rd3 46. Ke2 {[%emt 0:00:30] [#]} (46. Rb5 Rxd2) 46... Rxd2+ {[%emt 0:01:00]} ({Not} 46... Ne5 47. Rb5 f6 48. Rxe5 Rxd2+ 49. Rxd2 $17) 47. Rxd2 {[%emt 0:00:30][%mdl 4096] Endgame KRR-KRN} Re6+ {[%emt 0:00:30]} 48. Kd1 {[%emt 0:00:30]} Nxd2 49. Kxd2 {KR-KR} Rh6 {[%emt 0:01:00]} 50. Rg4 {[%emt 0:01:00]} Kf6 51. Rg2 {[%emt 0:00:30]} Kf5 {[%emt 0:01:00]} 52. Ke3 {[%emt 0:00:30]} Ra6 {[%emt 0:00:30]} 53. Rg1 {[%emt 0:00:30]} Ra3+ {[%emt 0:00:30]} 54. Ke2 {[%emt 0:00:30]} Rh3 55. Rg2 {[%emt 0:00:30]} g4 56. Kf1 {[%emt 0:00:30]} (56. Rg1 $142 Rxh2 57. Rc1) 56... Ra3 {[%emt 0:01:30] Weighted Error Value: White=0.54/Black=0.15 (very precise)} 0-1

[Event "Mongolian Championship Open 2022"]
[Site "Chingis Khentii"]
[Date "2022.05.15"]
[Round "2.4"]
[White "Battulga, Namkhai"]
[Black "Gan-Erdene, Sugar"]
[Result "1-0"]
[ECO "B48"]
[WhiteElo "2402"]
[BlackElo "2419"]
[Annotator "TA"]
[PlyCount "57"]
[EventDate "2022.05.12"]
[EventType "tourn"]
[EventCountry "MGL"]
[SourceTitle "playchess.com"]
[Source "ChessBase"]
[SourceQuality "1"]
[TimeControl "40/5400+30:1800+30"]

{[%evp 20,57,22,0,12,-9,-2,0,-2,-22,0,6,0,-20,45,22,88,79,126,116,188,159,312,342,401,75,86,0,668,644,640,645,1406,1193,29987,29988,29990,29991,29994,29995]} 1. e4 {[%emt 1:31:00]} c5 {[%emt 1:31:00]} 2. Nf3 {[%emt 0:00:30]} e6 {[%emt 0:00:30]} 3. d4 {[%emt 0:00:30]} cxd4 {[%emt 0:00:30]} 4. Nxd4 {[%emt 0:00:30]} Nc6 {[%emt 0:00:30]} 5. Nc3 {[%emt 0:00:30]} Qc7 {[%emt 0:00:30]} 6. Be3 {[%emt 0:00:30]} a6 {[%emt 0:00:30]} 7. Qd2 {[%emt 0:00:30]} Nf6 {[%emt 0:00:30]} 8. f3 {[%emt 0:00:30]} Ne5 {[%emt 0:00:30]} 9. O-O-O {[%emt 0:00:30]} Bb4 {[%emt 0:00:30] 9...Bb4 scores better than 9...b5.} 10. Nb3 {[%emt 0:00:30]} b5 {[%emt 0:00:30]} 11. Bd4 {[%emt 0:00:30]} Be7 {[%emt 0:00:30] B48: Sicilian: Taimanov: 5 Nc3 Qc7 6 Be3 a6 without Be2.} 12. Qf2 {[%emt 0:00:30]} d6 {[%emt 0:00:30]} 13. g4 {[%emt 0:00:30]} O-O {[%emt 0:00:30] The position is equal.} 14. g5 {[%emt 0:00:30]} Nfd7 {[%emt 0:00:30]} 15. f4 {[%emt 0:00:30][%cal Bf3f4,Bf4f5][%mdl 32]} b4 {[%emt 0:00:30]} 16. Na4 {[%emt 0:00:30] [#]} Ng4 $146 {[%emt 0:00:30]} (16... Nc4 $11) ({Predecessor:} 16... Nc4 17. Qe2 Ncb6 18. Nxb6 Nxb6 19. Qf2 Nc4 20. Qe2 Na5 21. Kb1 e5 22. Be3 exf4 23. Bxf4 Nxb3 24. cxb3 {½-½ (24) Khairullin,I (2538)-Lindberg,B (2419) Pardubice 2006}) 17. Qg3 {[%emt 0:00:30]} Qc6 {[%emt 0:00:30]} (17... Bb7 $11 {remains equal.}) 18. Qxg4 $16 {[%emt 0:00:30][%cal Of4f5]} Qxa4 {[%emt 0:00:30]} (18... e5 $142) 19. f5 $1 $36 {[%emt 0:00:30][%mdl 2048] White has strong initiative. White is more active.} e5 {[%emt 0:00:30]} (19... exf5 $16 {was worth a try.} 20. exf5 Ne5 21. Bxe5 dxe5) 20. Be3 $1 $18 {[%emt 0:00:30] Strongly threatening Rg1.} Qxa2 $2 {[%emt 0:00:30]} (20... Qc6 $16 {keeps fighting.}) 21. Bc4 {[%emt 0:00:30] Threatens to win with Rhg1.} Kh8 {[%emt 0:00:30]} 22. Qh5 $2 {[%emt 0:00:30]} (22. Bd5 $18 {is the precise move to win.}) 22... Bb7 $16 {[%emt 0:00:30] [#]} 23. Bxf7 {[%emt 0:00:30]} (23. g6 $2 Nf6 24. Qh4 Bxe4 $19) (23. f6 $1 $16 {[%cal Rf6g7]} gxf6 24. Qh3) 23... Rxf7 {[%mdl 8192]} 24. Qxf7 $18 Bxe4 {[%emt 0:01:00][%cal Od7c5]} 25. f6 {[%emt 0:01:00][%csl Gf7][%cal Rf6g7]} ({And not} 25. Qxe7 {[#]} Rc8 $1 26. Rxd6 (26. Nd4 $2 exd4 27. Kd2 dxe3+ 28. Kxe3 Bxf5 $19) 26... Rxc2+ 27. Kd1 Qb1+ 28. Nc1 Rxc1+ 29. Bxc1 Qc2+ 30. Ke1 Qxc1+ 31. Ke2 Qc4+ 32. Ke3 Qb3+ 33. Ke2 (33. Kxe4 Nc5+ 34. Kxe5 Qe3+ 35. Kd5 Qxe7 $11) 33... Qc4+ 34. Kf2 Qc2+ 35. Ke3 Qb3+ 36. Ke2 (36. Kxe4 Nc5+ 37. Kxe5 Qe3+ 38. Kd5 Qxe7 $11) 36... Qf3+ 37. Kd2 Qg2+ 38. Ke3 Qf3+ 39. Kd2 Qg2+ 40. Ke3 Qf3+ 41. Kd2 $11) 25... Bf8 {[%emt 0:00:30][%cal Oa8c8]} 26. Qxd7 {[%emt 0:00:30]} Bxh1 {[%emt 0:00:30]} 27. Rxh1 {[%emt 0:00:30] White mates.} a5 {[%emt 0:00:30]} 28. g6 {[%emt 0:00:30]} a4 {[%emt 0:00:30] [#]} 29. Bh6 $1 {[%emt 0:00:30][%mdl 512] Weighted Error Value: White=0.48/Black=0.77} 1-0